bitfinex-derivatives/quotes_BTCF0:USTF0_20251225
["timestamp","ask_amount","ask_price","bid_price","bid_amount"]
[1766676434290,0.05812,88229.0,88198.0,0.02978857]
[1766676434488,0.05812,88229.0,88199.0,0.06660538]
[1766676434688,0.00017001,88222.0,88200.0,0.07794771]
[1766676434890,0.00017001,88222.0,88200.0,0.02961856]
[1766676435195,0.00017001,88222.0,88194.0,0.03929345]
[1766676435196,0.0113426,88216.0,88194.0,0.03929345]
[1766676435403,0.011342,88221.0,88195.0,0.0370178]
[1766676435697,0.011342,88221.0,88192.0,0.03929345]
[1766676435698,0.011342,88221.0,88193.0,0.03929345]
[1766676435892,1e-08,88222.0,88197.0,0.03929345]
[1766676436199,1e-08,88222.0,88204.0,0.03929345]
[1766676436395,1e-08,88222.0,88210.0,0.0113433]
[1766676436697,1e-08,88222.0,88213.0,0.0113429]
[1766676436888,1e-08,88222.0,88209.0,0.00017001]
[1766676437687,1e-08,88222.0,88199.0,0.0113447]
[1766676437688,1e-08,88222.0,88202.0,0.03929345]
[1766676437888,1e-08,88222.0,88197.0,0.03929345]
[1766676438094,0.0113377,88254.0,88226.0,0.0113413]
[1766676438297,0.0113388,88246.0,88217.0,0.03628]
[1766676438497,0.0113376,88255.0,88217.0,0.03628]
[1766676438793,0.011337,88259.0,88228.0,0.0113409]
[1766676439001,0.00017001,88252.0,88235.0,0.00017001]
[1766676439596,0.00017001,88252.0,88219.0,0.03929345]
[1766676439794,0.0113388,88246.0,88217.0,0.03929345]
[1766676439994,0.0113395,88240.0,88215.0,0.05063615]
[1766676440291,0.0113392,88242.0,88216.0,0.03929345]
[1766676440490,0.00017001,88238.0,88220.0,0.00011395]
[1766676440793,0.01150981,88238.0,88220.0,0.00011395]
[1766676441195,0.00017001,88238.0,88220.0,0.00011395]
[1766676441602,0.00017001,88238.0,88220.0,0.01145585]
[1766676441803,0.00017001,88238.0,88224.0,0.0113415]
[1766676442097,2e-07,88238.0,88224.0,0.0113415]
[1766676442406,2e-07,88238.0,88224.0,0.03929345]
[1766676442606,2e-07,88238.0,88222.0,0.03929345]
[1766676442903,2e-07,88238.0,88224.0,0.03929345]
[1766676443304,2e-07,88238.0,88220.0,0.00011395]
[1766676443606,2e-07,88238.0,88210.0,0.05899141]
[1766676443607,0.0113403,88234.0,88210.0,0.05899141]
[1766676443805,0.0113403,88234.0,88209.0,0.07033481]
[1766676444302,0.01828,88237.0,88207.0,0.05899141]
[1766676444499,0.0113419,88221.0,88204.0,0.05899141]
[1766676444701,0.01124,88222.0,88203.0,0.05899141]
[1766676444899,0.0225818,88222.0,88203.0,0.05899141]
[1766676445203,0.0225818,88222.0,88200.0,0.05899141]
[1766676445605,0.00017001,88220.0,88201.0,0.0113444]
[1766676445806,0.00017001,88220.0,88202.0,0.05899141]
[1766676446100,0.00017001,88220.0,88198.0,0.05899141]
[1766676446496,0.00017001,88220.0,88202.0,0.0113443]
[1766676446691,0.00017001,88220.0,88198.0,0.05899141]
[1766676446692,0.00017001,88220.0,88198.0,0.07033621]
[1766676446907,0.00017001,88220.0,88198.0,0.05899141]
[1766676447309,0.0113426,88216.0,88199.0,0.09422404]
[1766676447513,0.011343,88213.0,88200.0,0.03523263]
[1766676447806,0.00017001,88220.0,88201.0,0.03523263]
[1766676448005,0.00017001,88220.0,88196.0,0.05899141]
[1766676448206,0.00017001,88220.0,88183.0,0.08038823]
[1766676448406,0.00017001,88220.0,88184.0,0.0113466]
[1766676448407,0.011343,88213.0,88184.0,0.0113466]
[1766676448603,0.011343,88213.0,88179.0,0.08038823]
[1766676448808,0.0113437,88207.0,88181.0,0.011347]
[1766676449001,0.00017001,88220.0,88181.0,0.011347]
[1766676449200,0.0113431,88212.0,88184.0,0.0113466]
[1766676449802,0.0113435,88209.0,88184.0,0.0113466]
[1766676450010,0.00017001,88220.0,88184.0,0.0113466]
[1766676450310,0.00017001,88220.0,88186.0,0.0113464]
[1766676450311,0.0113432,88211.0,88186.0,0.0113464]
[1766676450609,0.0113432,88211.0,88182.0,0.0113468]
[1766676450910,0.0113436,88208.0,88182.0,0.0113468]
[1766676451609,0.0113439,88206.0,88180.0,0.0113472]
[1766676451800,0.00017001,88202.0,88178.0,0.0104]
[1766676452000,0.00017001,88202.0,88182.0,0.0113469]
[1766676452410,0.00017001,88202.0,88181.0,0.011347]
[1766676452607,0.00017001,88202.0,88178.0,0.0104]
[1766676452810,0.00017001,88202.0,88179.0,0.0113473]
[1766676453111,0.01151441,88202.0,88179.0,0.0113473]
[1766676453511,0.00017001,88202.0,88179.0,0.0113473]
[1766676453710,0.00017001,88202.0,88182.0,0.0113469]
[1766676453914,0.00017001,88202.0,88179.0,0.0113473]
[1766676454409,0.00017001,88202.0,88181.0,0.0113469]
[1766676454707,0.00017001,88202.0,88183.0,0.0113467]
[1766676455109,0.00017001,88202.0,88179.0,0.0113472]
[1766676455507,0.00017001,88202.0,88181.0,0.0113469]
[1766676455901,0.00017001,88202.0,88178.0,0.0104]
[1766676456106,0.00017001,88202.0,88172.0,0.0001355]
[1766676456107,0.0113454,88194.0,88172.0,0.0001355]
[1766676456414,0.0113456,88193.0,88172.0,0.0001355]
[1766676456612,0.00017001,88202.0,88173.0,0.0113481]
[1766676456913,0.0113451,88197.0,88173.0,0.0113481]
[1766676457114,0.011345,88198.0,88172.0,0.0001355]
[1766676457315,0.0113451,88197.0,88173.0,0.011348]
[1766676457515,0.0113454,88195.0,88172.0,0.0001355]
[1766676457919,0.0113454,88195.0,88172.0,0.0114836]
[1766676458109,0.0113459,88190.0,88172.0,0.0001355]
[1766676458315,0.00017001,88202.0,88172.0,0.0001355]
[1766676459517,0.0113466,88185.0,88172.0,0.0001355]
[1766676459716,0.0202,88187.0,88159.0,0.00711]
[1766676460012,0.0113474,88179.0,88160.0,0.03270928]
[1766676460222,0.00017011,88182.0,88161.0,0.03270928]
[1766676460403,0.00017011,88182.0,88162.0,0.03270928]
[1766676460610,0.00017011,88182.0,88140.0,0.08038823]
[1766676460804,0.00013355,88181.0,88150.0,6e-08]
[1766676461015,0.0113509,88152.0,88150.0,6e-08]
[1766676461204,9.46e-05,88151.0,88150.0,6e-08]
[1766676461409,0.0114456,88151.0,88130.0,0.0002]
[1766676461811,0.0114456,88151.0,88125.0,1.44712]
[1766676462018,0.0114456,88151.0,88126.0,0.011354]
[1766676462818,0.0114456,88151.0,88114.0,1.52758823]
[1766676462819,9.46e-05,88151.0,88117.0,0.0113553]
[1766676463021,0.0113522,88142.0,88115.0,0.0113555]
[1766676463221,0.01061025,88141.0,88113.0,0.0104]
[1766676463521,9.025e-05,88141.0,88121.0,0.0113547]
[1766676463726,9.025e-05,88141.0,88116.0,0.01146214]
[1766676463916,9.025e-05,88141.0,88116.0,0.00010674]
[1766676465212,9.025e-05,88141.0,88117.0,0.0113552]
[1766676465416,0.01144255,88141.0,88116.0,0.00010674]
[1766676465817,9.025e-05,88141.0,88116.0,0.01146204]
[1766676466116,2.5e-07,88141.0,88116.0,0.00010674]
[1766676466623,2.5e-07,88141.0,88118.0,0.0113551]
[1766676467316,0.0113524,88140.0,88118.0,0.0113551]
[1766676467516,0.0113524,88140.0,88116.0,0.00010674]
[1766676467517,2.5e-07,88141.0,88122.0,0.0113545]
[1766676467722,2.5e-07,88141.0,88124.0,0.0113544]
[1766676467918,2.5e-07,88141.0,88116.0,0.00010674]
[1766676468124,2.5e-07,88141.0,88126.0,0.0113541]
[1766676470414,3.6e-07,88143.0,88134.0,0.0113531]
[1766676470620,3.6e-07,88143.0,88130.0,0.0113536]
[1766676470825,3.6e-07,88143.0,88117.0,0.0113553]
[1766676470826,3.6e-07,88143.0,88134.0,0.0113531]
[1766676471324,3.6e-07,88143.0,88116.0,0.00010674]
[1766676471526,4.525e-05,88142.0,88130.0,0.00017021]
[1766676472331,0.0113526,88139.0,88117.0,0.0113552]
[1766676472827,4.525e-05,88142.0,88116.0,0.00010674]
[1766676472828,0.01139735,88142.0,88121.0,0.0113547]
[1766676473027,0.01139735,88142.0,88123.0,0.0113544]
[1766676473328,4.525e-05,88142.0,88129.0,0.0113536]
[1766676474618,4.525e-05,88142.0,88125.0,0.0113541]
[1766676474819,4.525e-05,88142.0,88120.0,0.0113548]
[1766676475021,4.525e-05,88142.0,88116.0,0.00010674]
[1766676475721,4.525e-05,88142.0,88125.0,0.0113542]
[1766676476233,4.525e-05,88142.0,88122.0,0.0113546]
[1766676476632,4.525e-05,88142.0,88110.0,0.01036]
[1766676476926,4.525e-05,88142.0,88124.0,0.0113543]
[1766676477132,4.525e-05,88142.0,88127.0,0.011354]
[1766676477326,4.525e-05,88142.0,88124.0,0.0113544]
[1766676477922,4.525e-05,88142.0,88124.0,0.0113543]
[1766676478122,4.525e-05,88142.0,88125.0,0.0113542]
[1766676478431,4.525e-05,88142.0,88122.0,0.0113546]
[1766676478728,4.525e-05,88142.0,88110.0,0.01088]
[1766676478920,4.525e-05,88142.0,88116.0,0.0113554]
[1766676478921,0.0113528,88137.0,88116.0,0.0113554]
[1766676479122,4.525e-05,88142.0,88093.0,0.0113583]
[1766676479318,0.00017021,88126.0,88105.0,0.0113568]
[1766676479528,0.0113517,88145.0,88107.0,0.00017021]
[1766676479722,0.0113536,88131.0,88107.0,0.00017021]
[1766676480123,0.0113539,88129.0,88107.0,0.00017021]
[1766676480334,0.0113534,88132.0,88107.0,0.00017021]
[1766676480631,0.01024,88134.0,88107.0,0.00017021]
[1766676480632,0.00017021,88128.0,88107.0,0.00017021]
[1766676480831,2.1e-07,88128.0,88107.0,0.00017021]
[1766676481033,2.1e-07,88128.0,88116.0,0.0113553]
[1766676481233,0.0113522,88142.0,88119.0,0.011355]
[1766676481424,0.0113489,88167.0,88123.0,0.0113544]
[1766676481625,1.50592,88157.0,88123.0,0.0113544]
[1766676482025,0.0113518,88144.0,88120.0,0.0113549]
[1766676482228,0.00017021,88141.0,88123.0,0.00017021]
[1766676483334,0.0113529,88136.0,88123.0,0.00017021]
[1766676483535,0.0113525,88140.0,88123.0,0.00017021]
[1766676485653,0.00017021,88141.0,88123.0,0.00017021]
[1766676485857,0.01152251,88141.0,88123.0,0.00017021]
[1766676486049,0.0113526,88139.0,88123.0,0.00017021]
[1766676486252,0.0113529,88137.0,88123.0,0.00017021]
[1766676486955,0.0113535,88131.0,88112.0,0.0113559]
[1766676487256,0.00017021,88141.0,88108.0,0.00928]
[1766676487455,0.0113541,88127.0,88105.0,0.0113568]
[1766676487754,0.0113537,88130.0,88107.0,0.0113566]
[1766676487940,0.0113535,88132.0,88111.0,0.011356]
[1766676488140,0.0113536,88131.0,88111.0,0.011356]
[1766676489357,0.0113536,88131.0,88112.0,0.02916139]
[1766676489559,0.00017021,88141.0,88113.0,0.02916054]
[1766676489858,0.0113535,88131.0,88112.0,0.0113559]
[1766676490158,0.0113532,88134.0,88113.0,0.02916045]
[1766676490352,0.0113532,88134.0,88115.0,0.0113555]
[1766676490558,0.0113532,88134.0,88116.0,0.02916045]
[1766676490752,0.0113532,88134.0,88115.0,0.0113555]
[1766676490963,0.0113532,88134.0,88116.0,0.02919698]
[1766676491150,0.0113532,88134.0,88117.0,0.02920373]
[1766676491352,0.00017021,88141.0,88112.0,0.0113559]
[1766676491353,0.0113534,88132.0,88112.0,0.0113559]
[1766676491552,0.0113534,88132.0,88113.0,0.02909894]
[1766676491757,0.0113534,88132.0,88114.0,0.02909894]
[1766676491948,0.0113534,88132.0,88115.0,0.02909894]
[1766676492152,0.0113534,88132.0,88116.0,0.02909894]
[1766676492352,0.00017021,88141.0,88117.0,0.02909894]
[1766676492353,0.0113532,88134.0,88117.0,0.02909894]
[1766676492659,0.0113532,88134.0,88113.0,0.0113558]
[1766676492959,0.0113532,88134.0,88114.0,0.02910222]
[1766676493160,0.0113534,88132.0,88115.0,0.02910222]
[1766676493456,0.00017021,88141.0,88116.0,0.02910222]
[1766676493757,0.0113534,88132.0,88117.0,0.02910222]
[1766676493957,0.00017021,88141.0,88110.0,0.01152641]
[1766676493958,0.0113543,88126.0,88118.0,0.02910222]
[1766676494162,0.00017021,88141.0,88110.0,0.00017021]
[1766676494355,0.0113533,88133.0,88113.0,0.0113557]
[1766676494558,0.0204,88140.0,88110.0,0.00017021]
[1766676494559,0.0204,88140.0,88115.0,0.0113555]
[1766676494750,0.0113529,88136.0,88115.0,0.0113555]
[1766676494950,0.0204,88140.0,88110.0,0.00017021]
[1766676495156,0.0204,88140.0,88111.0,0.01028]
[1766676495350,0.0204,88140.0,88121.0,0.03030687]
[1766676495558,0.0113525,88139.0,88121.0,0.03030687]
[1766676495858,0.0113503,88157.0,88134.0,0.0113531]
[1766676496058,0.0113475,88178.0,88136.0,0.0113527]
[1766676496059,0.0113503,88156.0,88136.0,0.0113527]
[1766676496359,0.0113503,88156.0,88137.0,0.03030687]
[1766676496747,3e-07,88156.0,88137.0,0.03030687]
[1766676496948,0.01772,88167.0,88138.0,0.00017021]
[1766676497154,0.0113507,88153.0,88138.0,0.00017021]
[1766676497553,0.01772,88167.0,88138.0,0.00017021]
[1766676498054,0.14059689,88222.0,88148.0,0.0113513]
[1766676498055,0.0113484,88171.0,88148.0,0.0113513]
[1766676498259,1.4482,88186.0,88147.0,0.03030687]
[1766676498460,1.4482,88186.0,88144.0,0.02844]
[1766676498461,0.01008,88185.0,88151.0,0.03030687]
[1766676498660,0.0113483,88172.0,88150.0,0.03030687]
[1766676498855,0.0113486,88169.0,88151.0,0.03030687]
[1766676499060,0.01151881,88169.0,88151.0,0.03047708]
[1766676499263,0.01151881,88169.0,88151.0,0.00017021]
[1766676500556,0.01151881,88169.0,88163.0,4e-08]
[1766676500955,0.00017021,88169.0,88163.0,4e-08]
[1766676501358,0.0113491,88165.0,88163.0,4e-08]
[1766676502064,0.0113491,88165.0,88151.0,0.00017021]
[1766676502065,0.0113501,88158.0,88151.0,0.00017021]
[1766676502260,0.0113496,88162.0,88151.0,0.00017021]
[1766676502460,0.0113491,88166.0,88151.0,0.00017021]
[1766676502865,0.0113494,88163.0,88151.0,0.00017021]
[1766676503260,0.0113498,88160.0,88151.0,0.00017021]
[1766676503959,0.00017021,88169.0,88143.0,0.03030687]
[1766676504171,0.0113508,88152.0,88135.0,0.04036]
[1766676504364,0.00017021,88169.0,88139.0,0.0113524]
[1766676504566,0.00017021,88169.0,88135.0,0.04036]
[1766676505064,0.0113498,88160.0,88143.0,0.00017021]
[1766676505266,0.0113491,88166.0,88144.0,0.0113517]
[1766676505769,0.00017021,88169.0,88150.0,0.011351]
[1766676505968,0.0113488,88168.0,88148.0,0.0113512]
[1766676506773,0.0113488,88168.0,88149.0,0.01134]
[1766676507168,0.0113488,88168.0,88150.0,0.011351]
[1766676507570,0.0113488,88168.0,88149.0,0.01134]
[1766676507764,0.00017021,88169.0,88149.0,0.01134]
[1766676508573,0.0113496,88162.0,88149.0,0.01134]
[1766676508963,0.0113499,88160.0,88149.0,0.01134]
[1766676509158,0.0113506,88154.0,88143.0,0.00017021]
[1766676509371,0.0102,88175.0,88127.0,0.011354]
[1766676509372,0.0113512,88149.0,88127.0,0.011354]
[1766676509574,0.0113512,88149.0,88127.0,0.00536]
[1766676509769,0.0113495,88163.0,88121.0,0.0617148]
[1766676509770,0.0113519,88144.0,88121.0,0.0617148]
[1766676509964,0.0113519,88144.0,88121.0,0.0113548]
[1766676510474,0.00017021,88141.0,88124.0,0.00017021]
[1766676510866,0.01152241,88141.0,88124.0,0.00017021]
[1766676511062,0.0113524,88140.0,88113.0,0.04023867]
[1766676511268,0.0113528,88137.0,88113.0,0.0113558]
[1766676511667,0.00017021,88141.0,88109.0,1.54583867]
[1766676511668,0.00017021,88141.0,88120.0,0.0113548]
[1766676512269,0.0113527,88137.0,88122.0,0.00017021]
[1766676512464,0.00017021,88141.0,88122.0,0.00017021]
[1766676512465,0.01152251,88141.0,88122.0,0.00017021]
[1766676514170,0.0113526,88138.0,88122.0,0.00017021]
[1766676514569,0.0113524,88140.0,88122.0,0.00017021]
[1766676514867,0.0113528,88137.0,88122.0,0.00017021]
[1766676515063,0.01152251,88141.0,88122.0,0.00017021]
[1766676515566,0.00017021,88141.0,88122.0,0.00017021]
[1766676516178,0.0113524,88140.0,88122.0,0.00017021]
[1766676516570,0.0113527,88138.0,88122.0,0.00017021]
[1766676516770,0.0090857,88138.0,88122.0,0.00017021]
[1766676517481,0.01152241,88141.0,88123.0,0.0113545]
[1766676518077,0.0113526,88138.0,88122.0,0.00017021]
[1766676519370,0.00017021,88141.0,88122.0,0.00017021]
[1766676519766,0.00017021,88141.0,88123.0,0.0113545]
[1766676521682,0.00017021,88141.0,88129.0,0.0113537]
[1766676522383,0.0280306,88154.0,88122.0,0.00017021]
[1766676522784,0.01668,88154.0,88137.0,0.0113527]
[1766676522974,0.01668,88154.0,88139.0,0.0113524]
[1766676523172,0.01668,88154.0,88136.0,0.0113528]
[1766676523484,0.01685021,88154.0,88133.0,0.0113532]
[1766676523882,0.0113507,88153.0,88133.0,0.0113532]
[1766676524178,0.0113513,88149.0,88130.0,0.0113535]
[1766676524477,0.0113509,88152.0,88132.0,0.0113533]
[1766676524678,0.0113511,88150.0,88129.0,0.0113537]
[1766676524981,0.01685021,88154.0,88122.0,0.01152481]
[1766676525167,0.0113519,88144.0,88124.0,0.0113543]
[1766676525583,0.0113509,88151.0,88129.0,0.0113536]
[1766676525882,0.0113513,88149.0,88126.0,0.0113541]
[1766676526680,0.0113515,88147.0,88126.0,0.0113541]
[1766676526978,0.01685021,88154.0,88122.0,0.00017021]
[1766676527184,0.0113517,88146.0,88123.0,0.0113544]
[1766676527481,0.0113511,88150.0,88122.0,0.00017021]
[1766676527982,0.0113511,88150.0,88130.0,0.0113536]
[1766676529172,0.0113507,88153.0,88130.0,0.0113536]
[1766676529370,0.011351,88151.0,88126.0,0.011354]
[1766676529569,0.011351,88151.0,88122.0,0.00017021]
[1766676529570,0.0113513,88149.0,88122.0,0.01152481]
[1766676529774,0.0113515,88147.0,88122.0,0.01152481]
[1766676530683,0.0113518,88145.0,88122.0,0.01152481]
[1766676531082,0.0113518,88145.0,88124.0,0.0113543]
[1766676531385,1.46489021,88154.0,88122.0,0.00017021]
[1766676531684,0.0113517,88146.0,88123.0,0.0113545]
[1766676531873,0.0113517,88146.0,88125.0,0.0113542]
[1766676532276,0.0113521,88143.0,88125.0,0.0113542]
[1766676532681,0.0113523,88141.0,88122.0,0.01152481]
[1766676532895,1.46489021,88154.0,88122.0,0.01152481]
[1766676533180,1.46489021,88154.0,88122.0,0.00017021]
[1766676533385,1.46489021,88154.0,88123.0,0.0113544]
[1766676533788,0.0113521,88142.0,88123.0,0.0113544]
[1766676534883,0.00017021,88154.0,88134.0,0.011353]
[1766676535085,0.0113508,88152.0,88136.0,0.0113527]
[1766676535381,0.01021021,88154.0,88129.0,0.0113537]
[1766676535587,0.00017021,88154.0,88127.0,0.00988]
[1766676535883,0.03032081,88154.0,88127.0,0.00988]
[1766676536283,0.0264,88156.0,88138.0,0.0113526]
[1766676536785,0.0113511,88150.0,88133.0,0.0113532]
[1766676537088,0.0113511,88150.0,88135.0,0.0113529]
[1766676537281,0.00017021,88151.0,88134.0,0.00017021]
[1766676537481,0.00017021,88151.0,88135.0,0.0113529]
[1766676538590,0.03392,88159.0,88137.0,0.0113527]
[1766676538780,0.03392,88159.0,88134.0,0.00017021]
[1766676539092,0.0113509,88152.0,88136.0,0.0113528]
[1766676539282,0.03392,88159.0,88134.0,0.00017021]
[1766676539477,0.0113492,88165.0,88135.0,0.011353]
[1766676539684,0.00017021,88159.0,88136.0,0.04023867]
[1766676540191,0.0113479,88175.0,88154.0,0.0113504]
[1766676540689,0.0113483,88172.0,88151.0,0.0113509]
[1766676540886,0.0113484,88171.0,88152.0,0.05756]
[1766676541073,0.01,88187.0,88153.0,0.00017021]
[1766676541074,0.0113487,88169.0,88153.0,0.00017021]
[1766676541281,0.01146186,88170.0,88153.0,0.00017021]
[1766676541477,0.00011326,88170.0,88153.0,0.01152081]
[1766676542580,0.00011326,88170.0,88153.0,0.00017021]
[1766676543580,0.00011326,88170.0,88156.0,0.0113502]
[1766676543783,0.00011326,88170.0,88153.0,0.00017021]
[1766676543784,0.01,88187.0,88153.0,0.00017021]
[1766676544283,0.01,88187.0,88154.0,0.1186]
[1766676544980,0.00022677,88194.0,88154.0,0.1186]
[1766676544981,0.00022677,88194.0,88171.0,0.0113483]
[1766676545291,0.00022677,88194.0,88154.0,0.04023867]
[1766676545292,0.00022677,88194.0,88174.0,0.0001701]
[1766676545493,0.01157227,88194.0,88174.0,0.0001701]
[1766676546193,0.00022677,88194.0,88174.0,0.0001701]
[1766676546593,0.0113456,88193.0,88174.0,0.0001701]
[1766676547389,0.0113461,88189.0,88174.0,0.0001701]
[1766676547692,0.0113467,88185.0,88166.0,0.00956]
[1766676547899,0.0113461,88189.0,88166.0,0.00956]
[1766676548590,0.0113461,88189.0,88169.0,0.0001701]
[1766676548893,0.00016965,88190.0,88169.0,0.0001701]
[1766676549190,0.00016965,88190.0,88160.0,0.0084]
[1766676549191,0.011347,88182.0,88160.0,0.0084]
[1766676549595,0.0113475,88178.0,88152.0,0.0113508]
[1766676549795,0.0113475,88178.0,88157.0,0.01708]
[1766676550197,0.0001701,88176.0,88159.0,0.0001701]
[1766676554088,0.0113476,88178.0,88159.0,0.0001701]
[1766676554388,0.00016,88186.0,88145.0,0.1299517]
[1766676554588,0.00016,88186.0,88145.0,0.1299516]
[1766676554784,0.0113501,88158.0,88145.0,0.1186]
[1766676554989,0.0113501,88158.0,88145.0,0.05744]
[1766676555398,0.0113497,88161.0,88145.0,0.05744]
[1766676555595,0.0001701,88160.0,88145.0,0.05744]
[1766676555902,0.0113499,88159.0,88145.0,0.05744]
[1766676556104,0.0113507,88153.0,88139.0,0.05744]
[1766676556402,0.011351,88151.0,88139.0,0.05744]
[1766676556585,0.011351,88151.0,88134.0,0.1186]
[1766676556586,0.011351,88151.0,88138.0,0.05744]
[1766676556791,0.0113506,88154.0,88138.0,0.05744]
[1766676557197,0.0113506,88154.0,88137.0,0.0001701]
[1766676557399,0.0113506,88154.0,88137.0,0.0576101]
[1766676558401,0.0001701,88160.0,88137.0,0.0001701]
[1766676558699,0.0113506,88154.0,88137.0,0.0576101]
[1766676558897,0.0113509,88152.0,88137.0,0.0576101]
[1766676561095,0.0001701,88160.0,88137.0,0.05744]
[1766676561404,0.0113499,88159.0,88134.0,0.04944]
[1766676561592,0.011351,88151.0,88134.0,0.04944]
[1766676562306,0.0113513,88149.0,88134.0,0.0496101]
[1766676563103,0.0113515,88147.0,88134.0,0.0001701]
[1766676563304,0.0001701,88160.0,88134.0,0.0001701]
[1766676563500,0.0113502,88157.0,88136.0,0.0113528]
[1766676563701,0.0115199,88160.0,88136.0,0.0113528]
[1766676564005,0.0001701,88160.0,88134.0,0.0001701]
[1766676564202,1e-07,88160.0,88148.0,0.0113512]
[1766676564500,1e-07,88160.0,88147.0,0.05744]
[1766676564705,1e-07,88160.0,88147.0,0.01124]
[1766676565202,1e-07,88160.0,88147.0,0.0225913]
[1766676565408,1e-07,88160.0,88149.0,0.0113511]
[1766676565996,1e-07,88160.0,88151.0,0.0113508]
[1766676566190,1e-07,88160.0,88148.0,0.0113512]
[1766676566395,1e-07,88160.0,88147.0,0.01124]
[1766676568005,1e-07,88160.0,88147.0,0.0225913]
[1766676568208,0.00828,88176.0,88154.0,0.0113504]
[1766676569005,0.0196277,88176.0,88150.0,0.011351]
[1766676569201,0.0001701,88172.0,88154.0,0.0001701]
[1766676569606,0.0113484,88171.0,88154.0,0.0001701]
[1766676569904,0.0001701,88172.0,88154.0,0.0001701]
[1766676571796,0.0001701,88172.0,88154.0,0.0167701]
[1766676572606,0.0113492,88165.0,88154.0,0.0001701]
[1766676573001,0.0113488,88168.0,88154.0,0.0001701]
[1766676573597,0.0113491,88166.0,88154.0,0.0001701]
[1766676573801,0.0113506,88154.0,88139.0,0.03022402]
[1766676574108,0.0113506,88154.0,88137.0,0.03022402]
[1766676574304,0.0113506,88154.0,88136.0,0.03022402]
[1766676574805,0.0115207,88154.0,88136.0,0.0001701]
[1766676575000,0.0001701,88154.0,88136.0,0.0115229]
[1766676575194,0.0001701,88154.0,88136.0,0.04174692]
[1766676575401,1e-07,88154.0,88138.0,0.0113525]
[1766676577406,1e-07,88154.0,88136.0,0.04174692]
[1766676577712,1e-07,88154.0,88136.0,0.0001701]
[1766676577922,0.011351,88151.0,88136.0,0.0001701]
[1766676578113,1e-07,88154.0,88136.0,0.0001701]
[1766676579213,1e-07,88154.0,88130.0,0.03022402]
[1766676579214,1e-07,88154.0,88131.0,0.05736]
[1766676579513,0.011352,88143.0,88128.0,0.08758402]
[1766676580019,0.011352,88143.0,88128.0,0.05736]
[1766676581014,1e-07,88154.0,88127.0,0.03039422]
[1766676581312,0.0113526,88139.0,88128.0,0.05736]
[1766676581906,0.0113527,88138.0,88127.0,0.0001702]
[1766676583606,0.0113523,88141.0,88127.0,0.0001702]
[1766676583907,0.01124,88151.0,88127.0,0.0001702]
[1766676583908,0.0113516,88146.0,88127.0,0.0001702]
[1766676584612,0.01124,88151.0,88127.0,0.0001702]
[1766676585113,0.0113527,88138.0,88127.0,0.0001702]
[1766676586304,0.0113525,88140.0,88127.0,0.0001702]
[1766676587612,0.0113527,88138.0,88127.0,0.0001702]
[1766676588410,0.01124,88151.0,88127.0,0.0001702]
[1766676588613,0.0113516,88146.0,88127.0,0.0001702]
[1766676589110,0.01124,88151.0,88127.0,0.0001702]
[1766676589410,0.0113517,88146.0,88127.0,0.0001702]
[1766676589612,0.0113519,88144.0,88127.0,0.0001702]
[1766676589813,0.0113524,88140.0,88127.0,0.0001702]
[1766676590815,0.011352,88143.0,88127.0,0.0001702]
[1766676591217,0.0113524,88140.0,88127.0,0.0001702]
[1766676591806,0.0113514,88148.0,88127.0,0.0001702]
[1766676592006,0.011352,88143.0,88127.0,0.0001702]
[1766676592207,0.0113519,88144.0,88127.0,0.0001702]
[1766676592510,0.0113521,88142.0,88127.0,0.0001702]
[1766676593116,0.0113527,88138.0,88127.0,0.0001702]
[1766676594716,0.01124,88151.0,88127.0,0.0001702]
[1766676594917,0.0113524,88140.0,88127.0,0.0001702]
[1766676595118,0.0113525,88139.0,88127.0,0.0001702]
[1766676595311,0.0113521,88142.0,88127.0,0.0001702]
[1766676596316,0.0113524,88140.0,88127.0,0.0001702]
[1766676596915,0.011352,88143.0,88127.0,0.0001702]
[1766676597221,0.0113525,88139.0,88127.0,0.0001702]
[1766676597517,0.0113524,88140.0,88127.0,0.0001702]
[1766676598720,0.011352,88143.0,88127.0,0.0001702]
[1766676598921,0.011352,88143.0,88122.0,0.0113546]
[1766676599215,0.01124,88151.0,88115.0,0.04023867]
[1766676599416,0.011353,88135.0,88116.0,0.0214]
[1766676599812,0.0001702,88134.0,88117.0,0.0001702]
[1766676600216,0.01124,88151.0,88125.0,0.0113542]
[1766676600425,0.022591,88151.0,88130.0,0.0113535]
[1766676600617,0.01124,88151.0,88117.0,0.0001702]
[1766676600819,0.0113516,88146.0,88127.0,0.0113539]
[1766676601022,0.01696,88166.0,88123.0,1.44812]
[1766676601221,0.0001702,88153.0,88136.0,0.0001702]
[1766676601412,0.0001702,88153.0,88140.0,0.0113523]
[1766676601613,0.0001702,88153.0,88136.0,0.011523]
[1766676601812,0.0113494,88163.0,88143.0,0.0113519]
[1766676602019,0.0113489,88168.0,88148.0,0.0113512]
[1766676602321,0.0082,88176.0,88136.0,0.0001702]
[1766676602322,0.0082,88176.0,88145.0,0.0113517]
[1766676602521,0.0082,88176.0,88136.0,0.04040887]
[1766676602722,0.0082,88176.0,88137.0,0.04023867]
[1766676603018,2e-07,88165.0,88138.0,0.04023867]
[1766676603219,0.0113472,88181.0,88159.0,0.0113498]
[1766676603422,0.011346,88190.0,88166.0,0.0113489]
[1766676603611,0.011346,88190.0,88168.0,0.0113486]
[1766676603811,0.011346,88190.0,88169.0,0.04056]
[1766676604015,0.0113448,88199.0,88169.0,0.04056]
[1766676604314,0.07243502,88202.0,88175.0,0.0001701]
[1766676604510,0.06109062,88202.0,88175.0,0.0001701]
[1766676604716,0.04264,88215.0,88179.0,0.0113473]
[1766676604717,0.0113441,88205.0,88179.0,0.0113473]
[1766676605019,0.0113435,88209.0,88186.0,0.0113464]
[1766676605218,0.0113435,88209.0,88182.0,0.0113469]
[1766676605419,0.00016964,88204.0,88180.0,0.0098]
[1766676605726,0.0113452,88196.0,88181.0,0.00848]
[1766676606115,0.0113444,88202.0,88181.0,0.00848]
[1766676606509,0.00016964,88204.0,88183.0,0.0113468]
[1766676606718,0.00016964,88204.0,88186.0,0.0113464]
[1766676607616,0.00016964,88204.0,88175.0,0.0001701]
[1766676607823,0.0113443,88203.0,88179.0,0.0113472]
[1766676609533,0.0113443,88203.0,88182.0,0.0113469]
[1766676610132,0.011345,88198.0,88175.0,0.0001701]
[1766676610329,0.0113453,88195.0,88175.0,0.0001701]
[1766676610634,0.0113457,88192.0,88175.0,0.0001701]
[1766676610832,0.0113467,88185.0,88163.0,0.0113493]
[1766676611031,0.01124,88198.0,88152.0,1.44764]
[1766676611236,0.0113471,88181.0,88160.0,0.0113497]
[1766676611633,0.01124,88198.0,88143.0,0.00011679]
[1766676611832,0.0113476,88177.0,88152.0,0.0113507]
[1766676612136,0.0113478,88176.0,88152.0,0.0113507]
[1766676613240,0.0113478,88176.0,88155.0,0.0001701]
[1766676613431,0.0001701,88179.0,88143.0,0.00011679]
[1766676613630,0.0001701,88179.0,88146.0,0.0113516]